[Event "*** Titled Tuesday 3|2 Blitz"]
[Site "Chess.com"]
[Date "2015.02.24"]
[Round "6"]
[White "190l"]
[Black "Zvonokchess"]
[Result "1-0"]
[WhiteElo "1994"]
[BlackElo "2476"]
[TimeControl "180+2"]
[EndTime "12:18:41 PST"]
[Termination "190l won on time"]

1. d4 {[%clk 0:03:00]} 1... Nf6 {[%clk 0:02:36.8]} 2. c4 {[%clk 0:03:01]} 2...
c5 {[%clk 0:02:37.6]} 3. d5 {[%clk 0:03:02]} 3... b5 {[%clk 0:02:38.8]} 4. cxb5
{[%clk 0:03:03.1]} 4... a6 {[%clk 0:02:40.1]} 5. f3 {[%clk 0:03:04.6]} 5... g6
{[%clk 0:02:38]} 6. e4 {[%clk 0:03:05.3]} 6... Bg7 {[%clk 0:02:39.4]} 7. Nc3
{[%clk 0:03:03.7]} 7... O-O {[%clk 0:02:40.2]} 8. Be3 {[%clk 0:03:03]} 8... d6
{[%clk 0:02:31.2]} 9. Qd2 {[%clk 0:03:02.6]} 9... e6 {[%clk 0:02:21.1]} 10. dxe6
{[%clk 0:03:00.4]} 10... Bxe6 {[%clk 0:02:21.1]} 11. Nge2 {[%clk 0:02:42.9]}
11... d5 {[%clk 0:01:54.3]} 12. exd5 {[%clk 0:02:32.9]} 12... Nxd5 {[%clk
0:01:53.2]} 13. Nxd5 {[%clk 0:02:33.4]} 13... Qxd5 {[%clk 0:01:45.7]} 14. Qxd5
{[%clk 0:02:17.9]} 14... Bxd5 {[%clk 0:01:47.6]} 15. Bxc5 {[%clk 0:02:17.4]}
15... Re8 {[%clk 0:01:38.5]} 16. O-O-O {[%clk 0:01:53.2]} 16... Bxa2 {[%clk
0:01:29]} 17. Nc3 {[%clk 0:01:50.1]} 17... Bb3 {[%clk 0:01:28.3]} 18. b6 {[%clk
0:01:22.5]} 18... Nc6 {[%clk 0:01:14.6]} 19. b7 {[%clk 0:01:11.1]} 19... Rab8
{[%clk 0:00:51.7]} 20. Bxa6 {[%clk 0:01:11.4]} 20... Bxd1 {[%clk 0:00:52.6]} 21.
Rxd1 {[%clk 0:01:12.3]} 21... Na5 {[%clk 0:00:48.5]} 22. Ba7 {[%clk 0:01:02]}
22... Rxb7 {[%clk 0:00:44.8]} 23. Bxb7 {[%clk 0:01:02.8]} 23... Nxb7 {[%clk
0:00:46.7]} 24. Bd4 {[%clk 0:01:03.9]} 24... Bh6+ {[%clk 0:00:36.5]} 25. Kc2
{[%clk 0:01:03.6]} 25... Na5 {[%clk 0:00:36.8]} 26. Ne4 {[%clk 0:01:02]} 26...
Rc8+ {[%clk 0:00:36]} 27. Kd3 {[%clk 0:00:58.4]} 27... Nb3 {[%clk 0:00:33.5]}
28. Nf6+ {[%clk 0:00:57.4]} 28... Kh8 {[%clk 0:00:31.4]} 29. Bc3 {[%clk
0:00:43.6]} 29... Bg7 {[%clk 0:00:22.8]} 30. Re1 {[%clk 0:00:38.1]} 30... Nc5+
{[%clk 0:00:19.8]} 31. Kd2 {[%clk 0:00:34]} 31... Ne6 {[%clk 0:00:16.5]} 32. b4
{[%clk 0:00:21.8]} 32... Rxc3 {[%clk 0:00:15.1]} 33. Kxc3 {[%clk 0:00:19.7]}
33... Bxf6+ {[%clk 0:00:16.2]} 34. Kc4 {[%clk 0:00:21.4]} 34... Bd8 {[%clk
0:00:17]} 35. Kd5 {[%clk 0:00:21.7]} 35... Kg7 {[%clk 0:00:16.6]} 36. b5 {[%clk
0:00:22.4]} 1-0

[Event "*** Titled Tuesday 3|2 Blitz"]
[Site "Chess.com"]
[Date "2015.02.24"]
[Round "6"]
[White "FlySooHigh"]
[Black "Ar4uha"]
[Result "0-1"]
[WhiteElo "2328"]
[BlackElo "2453"]
[TimeControl "180+2"]
[EndTime "12:18:44 PST"]
[Termination "Ar4uha won by resignation"]

1. e4 {[%clk 0:02:56.4]} 1... d5 {[%clk 0:02:55.2]} 2. exd5 {[%clk 0:02:56.6]}
2... Nf6 {[%clk 0:02:56.4]} 3. d4 {[%clk 0:02:54.8]} 3... Nxd5 {[%clk
0:02:57.5]} 4. c4 {[%clk 0:02:53.7]} 4... Nb6 {[%clk 0:02:58.5]} 5. Nf3 {[%clk
0:02:53.9]} 5... g6 {[%clk 0:02:59.8]} 6. Nc3 {[%clk 0:02:50.9]} 6... Bg7 {[%clk
0:03:00.9]} 7. c5 {[%clk 0:02:51.9]} 7... Nd5 {[%clk 0:03:01.4]} 8. Bc4 {[%clk
0:02:52.3]} 8... c6 {[%clk 0:03:02.9]} 9. O-O {[%clk 0:02:52.3]} 9... O-O {[%clk
0:03:03.4]} 10. Re1 {[%clk 0:02:50.9]} 10... b6 {[%clk 0:03:03.6]} 11. Bg5
{[%clk 0:02:44.7]} 11... Be6 {[%clk 0:02:53.2]} 12. Rxe6 {[%clk 0:01:55.1]}
12... fxe6 {[%clk 0:02:52.5]} 13. Qe2 {[%clk 0:01:55.7]} 13... Qc8 {[%clk
0:02:29.7]} 14. Ne4 {[%clk 0:01:43.9]} 14... b5 {[%clk 0:02:23.9]} 15. Bb3
{[%clk 0:01:41.7]} 15... Nd7 {[%clk 0:02:24.2]} 16. Ng3 {[%clk 0:01:32.2]} 16...
N7f6 {[%clk 0:02:22.1]} 17. Re1 {[%clk 0:01:30.1]} 17... a5 {[%clk 0:02:17.2]}
18. Bd2 {[%clk 0:01:10.9]} 18... a4 {[%clk 0:02:07.3]} 19. Bc2 {[%clk
0:01:11.2]} 19... a3 {[%clk 0:02:08]} 20. b3 {[%clk 0:01:11]} 20... b4 {[%clk
0:02:09.4]} 21. Ng5 {[%clk 0:01:01.1]} 21... Nc7 {[%clk 0:02:05.5]} 22. Bxb4
{[%clk 0:00:22.4]} 22... Nfd5 {[%clk 0:02:06.7]} 23. Bd2 {[%clk 0:00:23.2]}
23... Bxd4 {[%clk 0:02:07.7]} 24. N3e4 {[%clk 0:00:21.6]} 24... e5 {[%clk
0:02:02.1]} 25. Bd3 {[%clk 0:00:18.6]} 25... Ne6 {[%clk 0:02:02.9]} 26. Bc4
{[%clk 0:00:17.3]} 26... Nef4 {[%clk 0:02:00.6]} 27. Bxf4 {[%clk 0:00:16.3]}
27... Rxf4 {[%clk 0:02:02.2]} 28. g3 {[%clk 0:00:16.8]} 28... Rf8 {[%clk
0:01:59.6]} 29. Kg2 {[%clk 0:00:17.9]} 29... Qf5 {[%clk 0:01:54.6]} 30. Nf3
{[%clk 0:00:15.2]} 30... Kg7 {[%clk 0:01:37.4]} 31. Qd3 {[%clk 0:00:12.8]} 31...
Nb4 {[%clk 0:01:35.7]} 32. Qe2 {[%clk 0:00:09.6]} 32... Rad8 {[%clk 0:01:27.6]}
33. Rf1 {[%clk 0:00:09.4]} 33... Nd5 {[%clk 0:01:26.4]} 34. Qd3 {[%clk
0:00:05.8]} 34... Nf6 {[%clk 0:01:26.8]} 35. Re1 {[%clk 0:00:03.9]} 35... Bxc5
{[%clk 0:01:28.2]} 36. Qe2 {[%clk 0:00:03.8]} 36... Nxe4 {[%clk 0:01:29.4]} 37.
Qxe4 {[%clk 0:00:05.6]} 37... Qxe4 {[%clk 0:01:30.6]} 38. Rxe4 {[%clk
0:00:07.5]} 38... Bd4 {[%clk 0:01:30.9]} 39. Re2 {[%clk 0:00:05.3]} 39... Kf6
{[%clk 0:01:30.2]} 40. Nd2 {[%clk 0:00:06]} 40... e6 {[%clk 0:01:29.8]} 41. Ne4+
{[%clk 0:00:07.9]} 41... Ke7 {[%clk 0:01:31.4]} 42. Ng5 {[%clk 0:00:08.9]} 42...
Rf5 {[%clk 0:01:29.1]} 43. Nxe6 {[%clk 0:00:07.2]} 43... Rd6 {[%clk 0:01:30.4]}
44. Nc7 {[%clk 0:00:05]} 44... Kd7 {[%clk 0:01:26.7]} 45. Na6 {[%clk 0:00:05.6]}
45... Rdf6 {[%clk 0:01:28.2]} 46. f4 {[%clk 0:00:04.9]} 46... exf4 {[%clk
0:01:29.7]} 47. gxf4 {[%clk 0:00:05.6]} 47... Rxf4 {[%clk 0:01:31.2]} 48. Kg3
{[%clk 0:00:05.9]} 48... Rf3+ {[%clk 0:01:31.6]} 49. Kg2 {[%clk 0:00:04.2]}
49... Rf2+ {[%clk 0:01:32.5]} 50. Kg3 {[%clk 0:00:06.1]} 50... Rxe2 {[%clk
0:01:34]} 51. Bxe2 {[%clk 0:00:07.9]} 51... Rf2 {[%clk 0:01:35.5]} 52. Bg4+
{[%clk 0:00:08.2]} 52... Kd6 {[%clk 0:01:35.4]} 53. Nb4 {[%clk 0:00:09.2]} 53...
c5 {[%clk 0:01:36.4]} 54. Nd3 {[%clk 0:00:09.9]} 54... Rxa2 {[%clk 0:01:37.4]}
0-1

[Event "*** Titled Tuesday 3|2 Blitz"]
[Site "Chess.com"]
[Date "2015.02.24"]
[Round "6"]
[White "FabianEnglert"]
[Black "Danirod"]
[Result "1-0"]
[WhiteElo "2240"]
[BlackElo "2351"]
[TimeControl "180+2"]
[EndTime "12:19:15 PST"]
[Termination "FabianEnglert won by resignation"]

1. Nf3 {[%clk 0:03:00]} 1... d5 {[%clk 0:02:58.5]} 2. g3 {[%clk 0:03:00.2]} 2...
c5 {[%clk 0:02:58]} 3. Bg2 {[%clk 0:03:00.7]} 3... Nc6 {[%clk 0:02:59.3]} 4. d4
{[%clk 0:03:01.9]} 4... Nf6 {[%clk 0:02:59.7]} 5. O-O {[%clk 0:03:02.2]} 5... e6
{[%clk 0:03:01.1]} 6. c4 {[%clk 0:03:03.3]} 6... dxc4 {[%clk 0:02:58.9]} 7. Ne5
{[%clk 0:03:04.2]} 7... Nxe5 {[%clk 0:02:58.7]} 8. dxe5 {[%clk 0:03:05]} 8...
Qxd1 {[%clk 0:02:58.1]} 9. Rxd1 {[%clk 0:03:05.9]} 9... Nd5 {[%clk 0:02:53.6]}
10. a4 {[%clk 0:02:47.9]} 10... Bd7 {[%clk 0:02:47.2]} 11. a5 {[%clk 0:02:35.6]}
11... O-O-O {[%clk 0:02:44.3]} 12. Bd2 {[%clk 0:02:22.1]} 12... Bc6 {[%clk
0:02:33]} 13. Na3 {[%clk 0:02:21]} 13... Be7 {[%clk 0:02:04.1]} 14. Nxc4 {[%clk
0:02:21.5]} 14... Nb4 {[%clk 0:01:53.8]} 15. Bxb4 {[%clk 0:02:02.9]} 15... cxb4
{[%clk 0:01:52]} 16. Rac1 {[%clk 0:01:34.4]} 16... Rxd1+ {[%clk 0:01:52.1]} 17.
Rxd1 {[%clk 0:01:36.3]} 17... Bxg2 {[%clk 0:01:53.1]} 18. Kxg2 {[%clk
0:01:38.1]} 18... Rd8 {[%clk 0:01:38]} 19. Rc1 {[%clk 0:01:33.2]} 19... Kb8
{[%clk 0:01:34.6]} 20. Kf3 {[%clk 0:01:25.9]} 20... Rd5 {[%clk 0:01:35.8]} 21.
Ke4 {[%clk 0:01:22.8]} 21... Bd8 {[%clk 0:01:23.4]} 22. Nd6 {[%clk 0:01:16.5]}
22... Bc7 {[%clk 0:01:06.6]} 23. Nxf7 {[%clk 0:01:17.3]} 23... Rxa5 {[%clk
0:01:04.8]} 24. f4 {[%clk 0:01:13.3]} 24... h6 {[%clk 0:01:00.8]} 25. Rd1 {[%clk
0:00:50.9]} 25... Rc5 {[%clk 0:00:55.5]} 26. Rd2 {[%clk 0:00:50.3]} 26... b5
{[%clk 0:00:34]} 27. Nd6 {[%clk 0:00:43.8]} 27... Bxd6 {[%clk 0:00:25.2]} 28.
Rxd6 {[%clk 0:00:45.7]} 28... Rc2 {[%clk 0:00:25]} 29. Kd3 {[%clk 0:00:36.2]}
29... Rxb2 {[%clk 0:00:25.9]} 30. Rxe6 {[%clk 0:00:37.7]} 30... a5 {[%clk
0:00:26.9]} 31. Rb6+ {[%clk 0:00:37.4]} 31... Kc7 {[%clk 0:00:27.5]} 32. Rxb5
{[%clk 0:00:38.8]} 32... a4 {[%clk 0:00:27.1]} 33. e6 {[%clk 0:00:35]} 33... Kd6
{[%clk 0:00:28.2]} 34. f5 {[%clk 0:00:34.6]} 34... a3 {[%clk 0:00:29.3]} 35. e4
{[%clk 0:00:33]} 35... a2 {[%clk 0:00:30]} 36. e5+ {[%clk 0:00:34.4]} 36... Kc6
{[%clk 0:00:31]} 37. Ra5 {[%clk 0:00:35.5]} 37... b3 {[%clk 0:00:29.3]} 38. Ra8
{[%clk 0:00:31.7]} 38... Kb7 {[%clk 0:00:13.7]} 39. e7 {[%clk 0:00:31.5]} 39...
Kxa8 {[%clk 0:00:15.2]} 40. e8=Q+ {[%clk 0:00:32.6]} 40... Kb7 {[%clk
0:00:17.1]} 41. Qd7+ {[%clk 0:00:33.6]} 41... Ka6 {[%clk 0:00:15.4]} 42. Qc6+
{[%clk 0:00:33.8]} 42... Ka7 {[%clk 0:00:14.3]} 43. Qc7+ {[%clk 0:00:32.2]}
43... Ka6 {[%clk 0:00:15]} 44. Qc4+ {[%clk 0:00:33.5]} 44... Kb7 {[%clk
0:00:15]} 45. Qd5+ {[%clk 0:00:34.5]} 45... Ka6 {[%clk 0:00:15.8]} 46. Qc6+
{[%clk 0:00:34.1]} 46... Ka7 {[%clk 0:00:16.2]} 47. Qa4+ {[%clk 0:00:30.9]}
47... Kb7 {[%clk 0:00:15.8]} 48. Qb4+ {[%clk 0:00:32]} 48... Ka6 {[%clk
0:00:15.8]} 49. Qa3+ {[%clk 0:00:26.4]} 49... Kb5 {[%clk 0:00:16.1]} 50. Qxb2
{[%clk 0:00:27.8]} 1-0

[Event "*** Titled Tuesday 3|2 Blitz"]
[Site "Chess.com"]
[Date "2015.02.24"]
[Round "6"]
[White "BeerLag"]
[Black "Tilicheev_Viacheslav"]
[Result "1-0"]
[WhiteElo "2404"]
[BlackElo "2537"]
[TimeControl "180+2"]
[EndTime "12:19:16 PST"]
[Termination "BeerLag won on time"]

1. e4 {[%clk 0:03:00]} 1... c5 {[%clk 0:02:59.1]} 2. f4 {[%clk 0:02:57.6]} 2...
d5 {[%clk 0:02:59.8]} 3. e5 {[%clk 0:02:56.8]} 3... Nc6 {[%clk 0:03:00.2]} 4.
Nf3 {[%clk 0:02:58.2]} 4... Bg4 {[%clk 0:02:59.4]} 5. Be2 {[%clk 0:02:58.8]}
5... Bxf3 {[%clk 0:03:00.3]} 6. Bxf3 {[%clk 0:03:00]} 6... e6 {[%clk 0:03:02.2]}
7. c3 {[%clk 0:02:54.5]} 7... c4 {[%clk 0:03:03]} 8. d3 {[%clk 0:02:51.6]} 8...
cxd3 {[%clk 0:03:04.9]} 9. Qxd3 {[%clk 0:02:52.3]} 9... Bc5 {[%clk 0:03:05.6]}
10. Nd2 {[%clk 0:02:35.2]} 10... Nge7 {[%clk 0:03:04.5]} 11. Nb3 {[%clk
0:02:32.3]} 11... Bb6 {[%clk 0:03:05.2]} 12. Be3 {[%clk 0:01:36.2]} 12... Nf5
{[%clk 0:03:00.5]} 13. Bxb6 {[%clk 0:01:29.7]} 13... Qxb6 {[%clk 0:03:02.4]} 14.
O-O-O {[%clk 0:01:30.1]} 14... O-O {[%clk 0:02:56.4]} 15. h4 {[%clk 0:01:30.4]}
15... a5 {[%clk 0:02:52.2]} 16. g4 {[%clk 0:01:28]} 16... Ne3 {[%clk 0:02:53]}
17. Rd2 {[%clk 0:01:28.8]} 17... Nc4 {[%clk 0:02:53.9]} 18. Rg2 {[%clk
0:01:24.3]} 18... a4 {[%clk 0:02:55.2]} 19. Nd4 {[%clk 0:01:23.6]} 19... Rfc8
{[%clk 0:02:49]} 20. Rc2 {[%clk 0:01:15]} 20... a3 {[%clk 0:02:38.9]} 21. b3
{[%clk 0:01:14.8]} 21... Nb2 {[%clk 0:02:40]} 22. Qe3 {[%clk 0:01:15.3]} 22...
Nxd4 {[%clk 0:02:35.3]} 23. Qxd4 {[%clk 0:01:15.1]} 23... Qa5 {[%clk 0:02:34.6]}
24. Rh3 {[%clk 0:01:09.6]} 24... b5 {[%clk 0:02:32.3]} 25. Be2 {[%clk
0:01:09.1]} 25... Rc7 {[%clk 0:02:22.3]} 26. h5 {[%clk 0:01:09.8]} 26... Rac8
{[%clk 0:02:22.3]} 27. g5 {[%clk 0:01:10.7]} 27... b4 {[%clk 0:02:18.8]} 28. Kb1
{[%clk 0:01:07.7]} 28... Rxc3 {[%clk 0:02:11.2]} 29. Rcxc3 {[%clk 0:01:07]}
29... bxc3 {[%clk 0:01:53.9]} 30. Kc2 {[%clk 0:01:08.1]} 30... Rb8 {[%clk
0:00:58.3]} 31. Rxc3 {[%clk 0:01:08.1]} 31... h6 {[%clk 0:00:46.5]} 32. g6
{[%clk 0:01:04.1]} 32... fxg6 {[%clk 0:00:37.8]} 33. hxg6 {[%clk 0:01:06]} 33...
Qd8 {[%clk 0:00:39.1]} 34. Qa7 {[%clk 0:01:02.9]} 34... d4 {[%clk 0:00:35.6]}
35. Qf7+ {[%clk 0:00:50.2]} 35... Kh8 {[%clk 0:00:36.5]} 36. Rc7 {[%clk
0:00:51.7]} 36... d3+ {[%clk 0:00:37.5]} 37. Kc3 {[%clk 0:00:47.8]} 37... Qf8
{[%clk 0:00:15.2]} 38. Qxf8+ {[%clk 0:00:49.1]} 38... Rxf8 {[%clk 0:00:17.1]}
39. Bxd3 {[%clk 0:00:50.7]} 39... h5 {[%clk 0:00:16.6]} 40. Be2 {[%clk
0:00:46.9]} 40... h4 {[%clk 0:00:18]} 41. Bg4 {[%clk 0:00:48.2]} 41... Rd8
{[%clk 0:00:14.4]} 42. Bxe6 {[%clk 0:00:46]} 42... Nd3 {[%clk 0:00:15.6]} 43. f5
{[%clk 0:00:37.4]} 43... Nxe5 {[%clk 0:00:12.3]} 44. f6 {[%clk 0:00:36.9]} 44...
Rd3+ {[%clk 0:00:03.6]} 45. Kb4 {[%clk 0:00:31.8]} 45... Rd4+ {[%clk 0:00:02.6]}
46. Kxa3 {[%clk 0:00:32.4]} 1-0

[Event "*** Titled Tuesday 3|2 Blitz"]
[Site "Chess.com"]
[Date "2015.02.24"]
[Round "6"]
[White "GedoGluperd"]
[Black "jup1978"]
[Result "0-1"]
[WhiteElo "2224"]
[BlackElo "2159"]
[TimeControl "180+2"]
[EndTime "12:19:18 PST"]
[Termination "jup1978 won by resignation"]

1. Nf3 {[%clk 0:03:00]} 1... d5 {[%clk 0:02:48.6]} 2. g3 {[%clk 0:03:00.9]} 2...
c6 {[%clk 0:02:50.2]} 3. Bg2 {[%clk 0:03:02.3]} 3... Bg4 {[%clk 0:02:51.7]} 4.
O-O {[%clk 0:03:03.2]} 4... Nd7 {[%clk 0:02:53.2]} 5. c4 {[%clk 0:03:03.5]} 5...
e6 {[%clk 0:02:53.5]} 6. h3 {[%clk 0:03:04]} 6... Bh5 {[%clk 0:02:53.5]} 7. b3
{[%clk 0:03:05.3]} 7... Bg6 {[%clk 0:02:48.7]} 8. Bb2 {[%clk 0:03:05.4]} 8...
Ngf6 {[%clk 0:02:45.3]} 9. d3 {[%clk 0:03:05.1]} 9... Bd6 {[%clk 0:02:44.9]} 10.
Nbd2 {[%clk 0:03:04.3]} 10... Qe7 {[%clk 0:02:46]} 11. Rc1 {[%clk 0:03:03.5]}
11... Ba3 {[%clk 0:02:45.6]} 12. Qc2 {[%clk 0:03:01.8]} 12... Bxb2 {[%clk
0:02:46.7]} 13. Qxb2 {[%clk 0:03:02.2]} 13... O-O {[%clk 0:02:48.6]} 14. Nh4
{[%clk 0:03:02.8]} 14... Rac8 {[%clk 0:02:47.3]} 15. Nxg6 {[%clk 0:03:02.9]}
15... hxg6 {[%clk 0:02:49.2]} 16. Rc2 {[%clk 0:03:03.3]} 16... b6 {[%clk
0:02:43.4]} 17. Rfc1 {[%clk 0:03:03.3]} 17... c5 {[%clk 0:02:42.2]} 18. Qa3
{[%clk 0:03:01.7]} 18... d4 {[%clk 0:02:40.2]} 19. Qxa7 {[%clk 0:02:56.9]} 19...
e5 {[%clk 0:02:41.1]} 20. Qb7 {[%clk 0:02:49.8]} 20... Qd6 {[%clk 0:02:36.4]}
21. a3 {[%clk 0:02:41.1]} 21... Rc7 {[%clk 0:02:36.3]} 22. Qf3 {[%clk
0:02:39.7]} 22... Ra7 {[%clk 0:02:35.5]} 23. Ra2 {[%clk 0:02:35.7]} 23... Qe6
{[%clk 0:02:25.8]} 24. Rca1 {[%clk 0:02:34.4]} 24... Nh7 {[%clk 0:02:26.7]} 25.
h4 {[%clk 0:02:22.8]} 25... f5 {[%clk 0:02:27.1]} 26. Qd5 {[%clk 0:02:23.6]}
26... Qxd5 {[%clk 0:02:25.5]} 27. Bxd5+ {[%clk 0:02:24.1]} 27... Kh8 {[%clk
0:02:27.2]} 28. b4 {[%clk 0:02:24.3]} 28... Nhf6 {[%clk 0:02:28.6]} 29. Bc6
{[%clk 0:02:22.1]} 29... Rc8 {[%clk 0:02:21]} 30. Bg2 {[%clk 0:02:20.3]} 30...
Re8 {[%clk 0:02:18.9]} 31. Nb3 {[%clk 0:02:15.2]} 31... e4 {[%clk 0:02:16.1]}
32. b5 {[%clk 0:02:13.3]} 32... Ra4 {[%clk 0:02:13.9]} 33. Nd2 {[%clk
0:02:13.6]} 33... Kg8 {[%clk 0:02:09.7]} 34. Kf1 {[%clk 0:01:52.4]} 34... Kf7
{[%clk 0:02:08.2]} 35. Re1 {[%clk 0:01:44.5]} 35... Rea8 {[%clk 0:02:06.8]} 36.
dxe4 {[%clk 0:01:43.3]} 36... Rxa3 {[%clk 0:02:04.4]} 37. Rxa3 {[%clk
0:01:32.4]} 37... Rxa3 {[%clk 0:02:06.3]} 38. exf5 {[%clk 0:01:33]} 38... gxf5
{[%clk 0:02:08.2]} 39. Nf3 {[%clk 0:01:32.3]} 39... Ne4 {[%clk 0:02:04.9]} 40.
Ng5+ {[%clk 0:01:29.1]} 40... Nxg5 {[%clk 0:02:04.5]} 41. hxg5 {[%clk
0:01:30.3]} 41... Ne5 {[%clk 0:02:04.6]} 42. f4 {[%clk 0:01:19.9]} 42... Ng4
{[%clk 0:02:00.8]} 43. Bf3 {[%clk 0:01:12.5]} 43... Ne3+ {[%clk 0:02:00.4]} 44.
Kf2 {[%clk 0:01:11.5]} 44... Ra4 {[%clk 0:01:50.4]} 45. Rc1 {[%clk 0:01:11.4]}
45... Ke7 {[%clk 0:01:45.1]} 46. Bd5 {[%clk 0:01:11.8]} 46... Nxd5 {[%clk
0:01:44.6]} 47. cxd5 {[%clk 0:01:12.5]} 47... Kd6 {[%clk 0:01:46.5]} 48. Rh1
{[%clk 0:01:12.9]} 48... Kxd5 {[%clk 0:01:46.7]} 49. Rh8 {[%clk 0:01:13.5]}
49... c4 {[%clk 0:01:35.4]} 50. Rd8+ {[%clk 0:01:13.4]} 50... Kc5 {[%clk
0:01:36.6]} 51. Rd7 {[%clk 0:01:14.9]} 51... g6 {[%clk 0:01:36]} 52. Rg7 {[%clk
0:01:14.3]} 52... c3 {[%clk 0:01:35.4]} 53. Rxg6 {[%clk 0:01:15.7]} 53... Kxb5
{[%clk 0:01:37]} 54. Rh6 {[%clk 0:01:08.1]} 54... c2 {[%clk 0:01:28.5]} 55. Rh1
{[%clk 0:01:08.8]} 55... Kc4 {[%clk 0:01:29.3]} 56. g4 {[%clk 0:01:08.1]} 56...
fxg4 {[%clk 0:01:19.6]} 57. g6 {[%clk 0:01:09.3]} 57... Ra7 {[%clk 0:01:14.2]}
58. f5 {[%clk 0:01:10.1]} 58... Ra5 {[%clk 0:01:03]} 59. Kg3 {[%clk 0:00:48.7]}
59... Rxf5 {[%clk 0:01:02.3]} 60. Kxg4 {[%clk 0:00:50.3]} 60... Rf8 {[%clk
0:00:58.9]} 61. Kg5 {[%clk 0:00:51.7]} 61... b5 {[%clk 0:00:58.4]} 62. g7 {[%clk
0:00:53.1]} 62... Rg8 {[%clk 0:00:59]} 63. Kf6 {[%clk 0:00:54.8]} 63... b4
{[%clk 0:00:59.6]} 64. Kf7 {[%clk 0:00:55.8]} 64... Rxg7+ {[%clk 0:01:00.9]} 65.
Kxg7 {[%clk 0:00:57.5]} 65... b3 {[%clk 0:01:02.5]} 66. Kf6 {[%clk 0:00:59]}
66... b2 {[%clk 0:01:03.8]} 0-1

[Event "*** Titled Tuesday 3|2 Blitz"]
[Site "Chess.com"]
[Date "2015.02.24"]
[Round "6"]
[White "GMNeiksans"]
[Black "EltajSafarli"]
[Result "0-1"]
[WhiteElo "2510"]
[BlackElo "2627"]
[TimeControl "180+2"]
[EndTime "12:19:24 PST"]
[Termination "EltajSafarli won by resignation"]

1. Nf3 {[%clk 0:03:00]} 1... Nf6 {[%clk 0:02:57]} 2. g3 {[%clk 0:03:01.1]} 2...
g6 {[%clk 0:02:58]} 3. Bg2 {[%clk 0:03:02.1]} 3... Bg7 {[%clk 0:02:59.9]} 4. O-O
{[%clk 0:03:03.3]} 4... O-O {[%clk 0:03:01.5]} 5. d4 {[%clk 0:03:03]} 5... d5
{[%clk 0:03:03.4]} 6. c4 {[%clk 0:03:04]} 6... dxc4 {[%clk 0:03:02]} 7. Na3
{[%clk 0:03:05.1]} 7... c3 {[%clk 0:03:02.3]} 8. bxc3 {[%clk 0:03:05.7]} 8... c5
{[%clk 0:03:04.2]} 9. e3 {[%clk 0:03:06.9]} 9... Nc6 {[%clk 0:03:04.8]} 10. Qe2
{[%clk 0:02:59.5]} 10... Qa5 {[%clk 0:03:02.5]} 11. Bb2 {[%clk 0:02:56.4]} 11...
Bf5 {[%clk 0:03:00.6]} 12. Nd2 {[%clk 0:02:50.6]} 12... cxd4 {[%clk 0:02:58.3]}
13. cxd4 {[%clk 0:02:45.3]} 13... Rac8 {[%clk 0:02:57.8]} 14. Nb3 {[%clk
0:02:45.5]} 14... Qb4 {[%clk 0:02:51]} 15. Rfc1 {[%clk 0:02:42.1]} 15... Bg4
{[%clk 0:02:51.8]} 16. Qd2 {[%clk 0:02:38.5]} 16... Be6 {[%clk 0:02:44.4]} 17.
Qxb4 {[%clk 0:02:29]} 17... Nxb4 {[%clk 0:02:46.3]} 18. Nc5 {[%clk 0:02:30.5]}
18... Bd5 {[%clk 0:02:40.7]} 19. Bxd5 {[%clk 0:02:28.8]} 19... Nfxd5 {[%clk
0:02:42.6]} 20. Nb5 {[%clk 0:02:06.5]} 20... b6 {[%clk 0:02:38.4]} 21. a3 {[%clk
0:01:51.8]} 21... bxc5 {[%clk 0:02:26.4]} 22. axb4 {[%clk 0:01:52.6]} 22... cxb4
{[%clk 0:02:28.3]} 23. Nxa7 {[%clk 0:01:43.2]} 23... Rxc1+ {[%clk 0:02:17.2]}
24. Rxc1 {[%clk 0:01:43.8]} 24... Ra8 {[%clk 0:02:16.5]} 25. Rc8+ {[%clk
0:01:32.8]} 25... Rxc8 {[%clk 0:02:11.4]} 26. Nxc8 {[%clk 0:01:34.7]} 26... f5
{[%clk 0:02:08.9]} 27. Kf1 {[%clk 0:01:33.9]} 27... Kf7 {[%clk 0:02:09.4]} 28.
Ke2 {[%clk 0:01:33.6]} 28... Ke8 {[%clk 0:02:10]} 29. f3 {[%clk 0:01:19.3]}
29... Kd7 {[%clk 0:02:03.1]} 30. Na7 {[%clk 0:01:20]} 30... e6 {[%clk
0:02:03.9]} 31. Kd3 {[%clk 0:01:16.6]} 31... Bf8 {[%clk 0:02:00.7]} 32. e4
{[%clk 0:01:15.9]} 32... fxe4+ {[%clk 0:02:01]} 33. fxe4 {[%clk 0:01:17.4]}
33... Nf6 {[%clk 0:01:57.1]} 34. d5 {[%clk 0:00:40.2]} 34... Ng4 {[%clk
0:01:54.8]} 35. Nc6 {[%clk 0:00:40.2]} 35... Bd6 {[%clk 0:01:41.8]} 36. Nd4
{[%clk 0:00:17.2]} 36... exd5 {[%clk 0:01:38.2]} 37. exd5 {[%clk 0:00:18.6]}
37... Nxh2 {[%clk 0:01:39.5]} 38. Ne2 {[%clk 0:00:19.9]} 38... Nf1 {[%clk
0:01:30.9]} 39. Kc4 {[%clk 0:00:12.7]} 39... h5 {[%clk 0:01:27.9]} 40. Bd4
{[%clk 0:00:06.8]} 40... g5 {[%clk 0:01:24.3]} 41. Bf2 {[%clk 0:00:06.7]} 41...
g4 {[%clk 0:01:22.2]} 42. Kb3 {[%clk 0:00:06]} 42... Nd2+ {[%clk 0:01:20.1]} 43.
Kc2 {[%clk 0:00:07.1]} 43... Ne4 {[%clk 0:01:22]} 44. Be1 {[%clk 0:00:08.5]}
44... Nf6 {[%clk 0:01:21.1]} 45. Kd3 {[%clk 0:00:07.8]} 45... Nxd5 {[%clk
0:01:19]} 46. Kc4 {[%clk 0:00:09.2]} 46... Ke6 {[%clk 0:01:15.8]} 47. Nd4+
{[%clk 0:00:09.6]} 47... Ke5 {[%clk 0:01:15.5]} 48. Nc2 {[%clk 0:00:05.9]} 48...
Ke4 {[%clk 0:01:15.4]} 49. Kb3 {[%clk 0:00:04.7]} 49... Ne3 {[%clk 0:01:13.3]}
50. Nxb4 {[%clk 0:00:05.1]} 50... Bxb4 {[%clk 0:01:09.5]} 51. Bxb4 {[%clk
0:00:06.2]} 51... Kf3 {[%clk 0:01:10.7]} 0-1